bitfinex/quotes_ETHUSD_20230113
["timestamp","ask_amount","ask_price","bid_price","bid_amount"]
[1673576505112,2.417,1407.2,1407.1,13.22420795]
[1673576505508,2.417,1407.2,1407.1,12.17111697]
[1673576506878,2.417,1407.2,1407.1,11.64808194]
[1673576507098,2.417,1407.2,1407.1,13.2246785]
[1673576509463,2.417,1407.2,1407.1,12.17111697]
[1673576511398,2.9186,1407.2,1407.1,12.17111697]
[1673576511777,1.7106,1407.2,1407.1,5.06430697]
[1673576511986,1.7106,1407.2,1407.1,6.11844735]
[1673576512316,0.5016,1407.2,1407.1,6.11844735]
[1673576514641,0.5016,1407.2,1407.1,3.11844735]
[1673576515457,3.706,1407.3,1407.1,2.06430697]
[1673576515691,3.70308568,1407.3,1407.1,3.11848265]
[1673576517977,3.70308568,1407.3,1407.2,1.05417568]
[1673576518206,1.206,1407.3,1407.2,1.05417568]
[1673576518417,3.706,1407.3,1407.2,1.05417568]
[1673576520121,2.5,1407.3,1407.2,1.05417568]
[1673576521862,2.5,1407.3,1407.2,2.63077224]
[1673576523831,9.6058,1407.3,1407.2,1.57659656]
[1673576524051,9.7048,1407.3,1407.2,1.57659656]
[1673576524378,9.7048,1407.3,1407.2,2.63293838]
[1673576525117,9.7048,1407.3,1407.2,1.57659656]
[1673576525334,9.7048,1407.3,1407.2,1.57404749]
[1673576525852,9.7048,1407.3,1407.2,3.68014054]
[1673576529417,2.599,1407.3,1407.2,3.68014054]
[1673576529633,2.5,1407.3,1407.2,1.57404749]
[1673576531181,10.8148,1407.3,1407.2,1.05823996]
[1673576531395,10.9138,1407.3,1407.2,1.05828271]
[1673576531623,14.52013272,1407.3,1407.2,1.05828271]
[1673576531833,15.72913272,1407.3,1407.2,1.05828271]
[1673576532049,29.94073272,1407.3,1407.2,1.05828271]
[1673576532415,29.94073272,1407.3,1407.1,1.54599312]
[1673576532659,27.52273272,1407.3,1407.2,1.05828271]
[1673576532882,29.94073272,1407.3,1407.2,1.05828271]
[1673576533906,29.94073272,1407.3,1407.1,1.54599312]
[1673576534098,2.408,1407.2,1407.1,1.54599312]
[1673576534303,9.51431,1407.2,1407.1,3.13249884]
[1673576534681,9.61331,1407.2,1407.1,3.13249884]
[1673576534884,12.11331,1407.2,1407.1,3.13249884]
[1673576535918,22.82595272,1407.2,1407.1,3.13249884]
[1673576536324,22.82595272,1407.2,1407.1,1.54599312]
[1673576537198,22.82595272,1407.2,1407.1,3.13249884]
[1673576538332,22.82595272,1407.2,1407.1,1.54599312]
[1673576538539,20.32595272,1407.2,1407.1,1.54599312]
[1673576538753,20.32595272,1407.2,1407.1,3.13249884]
[1673576539182,19.12695272,1407.2,1407.1,1.54599312]
[1673576539400,19.12695272,1407.2,1407.1,3.13249884]
[1673576540192,17.91795272,1407.2,1407.1,1.54599312]
[1673576540451,17.91795272,1407.2,1407.1,3.13249884]
[1673576541605,19.91795272,1407.2,1407.1,1.54599312]
[1673576542402,19.91795272,1407.2,1407.1,3.13249884]
[1673576542863,19.91795272,1407.2,1407.1,1.54599312]
[1673576544610,17.91795272,1407.2,1407.1,1.54599312]
[1673576546865,17.91500868,1407.2,1407.1,1.54599312]
[1673576547670,19.91500868,1407.2,1407.1,1.54599312]
[1673576547868,19.91500868,1407.2,1407.1,0.48771041]
[1673576548081,19.91500868,1407.2,1407.1,1.54599312]
[1673576550331,17.91500868,1407.2,1407.1,1.54599312]
[1673576550656,17.91500868,1407.2,1407.1,3.13249884]
[1673576550657,0.099,1407.2,1407.1,3.13249884]
[1673576550816,30.67868607,1407.4,1407.1,2.07421613]
[1673576551022,6.10633272,1407.3,1407.2,1.05677903]
[1673576551280,3.70533272,1407.3,1407.2,1.05677903]
[1673576551454,3.60633272,1407.3,1407.2,1.05677903]
[1673576551965,8.8624,1407.4,1407.2,2.64328475]
[1673576552175,12.46873272,1407.4,1407.2,2.64328475]
[1673576553052,12.46873272,1407.4,1407.3,1.05677903]
[1673576553891,3.70533272,1407.4,1407.3,1.05677903]
[1673576554083,3.60633272,1407.4,1407.3,1.05677903]
[1673576555335,5.60633272,1407.4,1407.3,1.05677903]
[1673576555579,5.70533272,1407.4,1407.3,1.05677903]
[1673576556119,5.70533272,1407.4,1407.2,1.05677903]
[1673576556321,28.22723272,1407.4,1407.2,1.05677903]
[1673576556536,28.22723272,1407.4,1407.1,1.54448944]
[1673576556537,9.6058,1407.3,1407.1,1.54448944]
[1673576556749,9.7048,1407.3,1407.1,1.54448944]
[1673576557116,16.8106,1407.3,1407.1,1.54448944]
[1673576558010,20.41693272,1407.3,1407.1,1.54448944]
[1673576558216,21.62293272,1407.3,1407.1,1.54448944]
[1673576558799,22.33369837,1407.3,1407.1,1.54448944]
[1673576563580,21.62293272,1407.3,1407.1,1.54448944]
[1673576564609,21.62293272,1407.3,1407.1,3.13099516]
[1673576564819,21.62293272,1407.3,1407.1,1.54448944]
[1673576565686,21.62293272,1407.3,1407.1,3.13099516]
[1673576566636,21.62293272,1407.3,1407.1,1.54448944]
[1673576570058,21.62293272,1407.3,1407.1,3.13099516]
[1673576570276,21.62293272,1407.3,1407.1,1.54448944]
[1673576570626,21.62293272,1407.3,1407.1,3.13099516]
[1673576571001,3.70533272,1407.3,1407.2,1.05677903]
[1673576571215,3.60633272,1407.3,1407.2,1.05677903]
[1673576573660,17.22486565,1407.4,1407.2,1.05677903]
[1673576573898,20.83119837,1407.4,1407.2,1.05677903]
[1673576574269,23.33119837,1407.4,1407.2,1.05677903]
[1673576574503,20.83119837,1407.4,1407.2,1.05677903]
[1673576575102,13.72589837,1407.4,1407.2,1.05677903]
[1673576575359,20.83123837,1407.4,1407.2,2.64328475]
[1673576575572,20.83123837,1407.4,1407.2,1.05677903]
[1673576575573,20.12047272,1407.4,1407.2,1.05677903]
[1673576575944,20.12047272,1407.4,1407.2,2.64328475]
[1673576576905,22.62047272,1407.4,1407.2,2.64328475]
[1673576577144,20.12047272,1407.4,1407.2,1.05677903]
[1673576577529,22.62047272,1407.4,1407.2,1.05677903]
[1673576577881,20.12047272,1407.4,1407.2,2.64328475]
[1673576579768,20.12047272,1407.4,1407.2,1.05677903]
[1673576580517,20.12047272,1407.4,1407.2,2.64328475]
[1673576582055,20.12047272,1407.4,1407.3,1.05677903]
[1673576582268,20.12047272,1407.4,1407.2,2.64328475]
[1673576583134,20.12047272,1407.4,1407.2,1.05677903]
[1673576583382,22.12047272,1407.4,1407.2,1.05677903]
[1673576583977,20.12047272,1407.4,1407.2,1.05677903]
[1673576584796,20.12047272,1407.4,1407.2,2.64328475]
[1673576585357,20.12047272,1407.4,1407.2,1.05677903]
[1673576585520,2.5,1407.3,1407.1,17.41029516]
[1673576585730,2.5,1407.3,1407.1,17.34429516]
[1673576586009,2.5,1407.3,1407.1,10.23763516]
[1673576586367,2.5,1407.3,1407.1,3.13099516]
[1673576587990,2.5,1407.3,1407.2,1.05677903]
[1673576588155,2.5,1407.3,1407.1,3.13099516]
[1673576588571,16.71178,1407.3,1407.1,1.54448944]
[1673576588780,16.81078,1407.3,1407.1,1.54448944]
[1673576591136,20.41711272,1407.3,1407.1,1.54448944]
[1673576591988,27.52300272,1407.3,1407.1,1.54448944]
[1673576596926,3.60428201,1407.2,1407.1,0.48771041]
[1673576597246,27.42321201,1407.2,1407.1,0.48771041]
[1673576597454,27.52221201,1407.2,1407.1,0.48771041]
[1673576601411,27.52221201,1407.2,1407.1,1.54448944]
[1673576603460,27.52221201,1407.2,1407.1,0.48771041]
[1673576603671,25.02221201,1407.2,1407.1,0.48771041]
[1673576607140,27.52221201,1407.2,1407.1,0.48771041]
[1673576616546,27.75221201,1407.2,1407.1,0.48771041]
[1673576618332,25.25221201,1407.2,1407.1,0.48771041]
[1673576618545,17.91590201,1407.2,1407.1,0.48771041]
[1673576618757,10.80959201,1407.2,1407.1,1.54448944]
[1673576619431,7.20531,1407.2,1407.1,1.54448944]
[1673576619658,7.20214339,1407.2,1407.1,1.54448944]
[1673576620032,14.30845339,1407.2,1407.1,1.54448944]
[1673576621252,14.31162,1407.2,1407.1,1.54448944]
[1673576623731,14.31162,1407.2,1407.1,3.13099516]
[1673576623732,7.20531,1407.2,1407.1,3.13099516]
[1673576624287,0.099,1407.2,1407.1,3.13099516]
[1673576624493,21.41725,1407.3,1407.1,3.13099516]
[1673576624705,25.02358272,1407.3,1407.1,3.13099516]
[1673576626920,0.099,1407.3,1407.2,1.05677903]
[1673576627104,7.20443,1407.4,1407.2,1.05677903]
[1673576627318,3.70533272,1407.4,1407.2,2.64328475]
[1673576627555,3.60633272,1407.4,1407.2,3.9380317]
[1673576629314,10.71163272,1407.4,1407.2,3.9380317]
[1673576629664,10.81063272,1407.4,1407.2,3.9380317]
[1673576631328,10.71063272,1407.4,1407.2,3.9380317]
[1673576631958,10.71063272,1407.4,1407.3,0.524908]
[1673576635786,3.60533272,1407.4,1407.3,0.524908]
[1673576635932,10.51163272,1407.4,1407.3,0.524908]
[1673576636146,3.50533272,1407.4,1407.3,0.524908]
[1673576636351,25.71055,1407.5,1407.3,0.524908]
[1673576636616,9.6053,1407.4,1407.3,0.524908]
[1673576636833,9.7043,1407.4,1407.3,0.524908]
[1673576636988,7.2043,1407.4,1407.3,0.524908]
[1673576639140,7.2043,1407.4,1407.3,0.474908]
[1673576639345,9.7043,1407.4,1407.3,0.474908]
[1673576639565,7.2043,1407.4,1407.3,0.474908]
[1673576640589,9.7043,1407.4,1407.3,0.474908]
[1673576640915,7.2043,1407.4,1407.3,0.474908]
[1673576641217,7.1043,1407.4,1407.3,0.474908]
[1673576641856,9.1043,1407.4,1407.3,0.474908]
[1673576642037,7.1043,1407.4,1407.3,0.474908]
[1673576643202,9.6043,1407.4,1407.3,0.474908]
[1673576643980,7.1043,1407.4,1407.3,0.474908]
[1673576644203,9.6043,1407.4,1407.3,0.474908]
[1673576644353,27.42123272,1407.4,1407.3,0.474908]
[1673576645824,27.32123272,1407.4,1407.3,0.474908]
[1673576646034,35.46503319,1407.4,1407.3,0.474908]
[1673576646300,41.45699497,1407.4,1407.3,1e-08]
[1673576646470,49.85539497,1407.4,1407.3,1e-08]
[1673576648266,46.05902958,1407.4,1407.3,1e-08]
[1673576649554,48.77676147,1407.4,1407.3,1e-08]
[1673576650831,49.84047739,1407.4,1407.3,1e-08]
[1673576651238,48.77676147,1407.4,1407.3,1e-08]
[1673576653492,50.01902912,1407.4,1407.3,1e-08]
[1673576654292,51.61435711,1407.4,1407.3,1e-08]
[1673576657971,51.51435711,1407.4,1407.3,1e-08]
[1673576658390,49.91902912,1407.4,1407.3,1e-08]
[1673576658605,51.51400322,1407.4,1407.3,1e-08]
[1673576660385,51.51373934,1407.4,1407.3,1e-08]
[1673576664485,46.66319599,1407.4,1407.3,1e-08]
[1673576665037,50.44646905,1407.4,1407.3,1e-08]
[1673576665507,49.38368443,1407.4,1407.3,1e-08]
[1673576666145,0.00199999,1407.1,1407.0,0.07292484]
[1673576666356,24.92876271,1407.1,1407.0,0.07292484]
[1673576666672,25.02776271,1407.1,1407.0,0.07292484]
[1673576667221,7.20780999,1407.1,1407.0,1.39492484]
[1673576667407,7.20780999,1407.1,1407.0,0.2208532]
[1673576667954,7.20780999,1407.1,1407.0,0.07292484]
[1673576668368,14.31461999,1407.1,1407.0,0.07292484]
[1673576679433,14.31461999,1407.1,1407.0,1.12970387]
[1673576679750,0.10099999,1407.1,1407.0,1.12970387]
[1673576680073,0.00199999,1407.1,1407.0,1.12970387]
[1673576680282,0.00199999,1407.1,1407.0,2.1271277]
[1673576683492,0.00199999,1407.1,1407.0,3.71363342]
[1673576684365,21.32242999,1407.1,1407.0,3.71363342]
[1673576684579,14.31461999,1407.1,1407.0,1.65943056]
[1673576684895,14.31461999,1407.1,1407.0,2.72011739]
[1673576685123,7.20780999,1407.1,1407.0,2.72011739]
[1673576685633,7.20780999,1407.1,1407.0,2.72055682]
[1673576685840,7.20780999,1407.1,1407.0,1.65943056]
[1673576686058,0.10099999,1407.1,1407.0,2.72071872]
[1673576686233,0.00199999,1407.1,1407.0,1.65943056]
[1673576686574,0.00199999,1407.1,1407.0,2.57230924]
[1673576686956,0.00199999,1407.1,1407.0,3.63369734]
[1673576687945,0.00199999,1407.1,1407.0,2.72081866]
[1673576688166,0.00199999,1407.1,1407.0,1.13431294]
[1673576688472,0.00199999,1407.1,1407.0,2.72081866]
[1673576688893,0.00199999,1407.1,1407.0,1.13431294]
[1673576689068,0.00199999,1407.1,1407.0,2.72081866]
[1673576690367,0.00199999,1407.1,1407.0,1.13431294]
[1673576690695,0.00199999,1407.1,1407.0,2.72081866]
[1673576692316,0.00199999,1407.1,1407.0,1.13431294]
[1673576692524,0.00199999,1407.1,1407.0,2.72081866]
[1673576694032,0.00199999,1407.1,1407.0,1.65943056]
[1673576695532,7.10880999,1407.1,1407.0,1.65943056]
[1673576695744,7.20780999,1407.1,1407.0,1.65943056]
[1673576696730,7.20780999,1407.1,1407.0,1.13444639]
[1673576696935,7.20780999,1407.1,1407.0,2.72095211]
[1673576697164,7.20780999,1407.1,1407.0,1.13444639]
[1673576697783,7.20780999,1407.1,1407.0,2.72095211]
[1673576699900,14.31461999,1407.1,1407.0,2.72095211]
[1673576705390,14.31461999,1407.1,1407.0,1.65943056]
[1673576706256,7.20780999,1407.1,1407.0,1.65943056]
[1673576706409,0.10099999,1407.1,1407.0,4.50476776]
[1673576706618,0.00199999,1407.1,1407.0,4.50476776]
[1673576708218,0.00199999,1407.1,1407.0,11.15238407]
[1673576708559,0.00199999,1407.1,1407.0,8.65238407]
[1673576710683,0.00199999,1407.1,1407.0,18.25970407]
[1673576711467,0.00199999,1407.1,1407.0,15.75970407]
[1673576711725,0.00199999,1407.1,1407.0,14.71898113]
[1673576711943,0.00199999,1407.1,1407.0,13.12708776]
[1673576715263,0.00199999,1407.1,1407.0,14.71900701]
[1673576715925,0.00199999,1407.1,1407.0,13.12708776]
[1673576719293,0.00199999,1407.1,1407.0,11.60808776]
[1673576722970,0.00199999,1407.1,1407.0,10.09308776]
[1673576723555,0.00199999,1407.1,1407.0,12.72570407]
[1673576723761,0.00199999,1407.1,1407.0,15.22570407]
[1673576724390,0.00199999,1407.1,1407.0,12.72570407]
[1673576724602,0.00199999,1407.1,1407.0,10.09308776]
[1673576724967,0.00199999,1407.1,1407.0,12.72570407]
[1673576725376,0.00199999,1407.1,1407.0,10.09308776]
[1673576725568,0.00199999,1407.1,1407.0,11.68475819]
[1673576725967,0.00199999,1407.1,1407.0,10.09308776]
[1673576726642,0.00199999,1407.1,1407.0,15.22570407]
[1673576726855,0.00199999,1407.1,1407.0,12.72570407]
[1673576727046,0.00199999,1407.1,1407.0,10.09308776]
[1673576732972,0.00199999,1407.1,1407.0,12.59308776]
[1673576733424,0.00199999,1407.1,1407.0,10.09308776]
[1673576734164,0.00199999,1407.1,1407.0,12.72570407]
[1673576740415,0.00199999,1407.1,1407.0,10.61961102]
[1673576740630,0.00199999,1407.1,1407.0,12.74409919]
[1673576740880,0.00199999,1407.1,1407.0,10.61961102]
[1673576741895,0.00199999,1407.1,1407.0,17.72693102]
[1673576743925,0.00199999,1407.1,1407.0,20.22693102]
[1673576744354,0.00199999,1407.1,1407.0,17.72693102]
[1673576745812,0.00199999,1407.1,1407.0,19.85293372]
[1673576746027,0.00199999,1407.1,1407.0,19.85291342]
[1673576746202,0.00199999,1407.1,1407.0,17.72693102]
[1673576752634,7.20486,1407.3,1407.0,20.72693102]
[1673576752848,7.20486,1407.3,1407.2,1.06288078]
[1673576754454,7.20486,1407.3,1407.2,2.65720195]
[1673576755275,7.20486,1407.3,1407.2,1.06288078]
[1673576758631,7.20486,1407.3,1407.2,2.65720195]
[1673576762851,8.26756861,1407.3,1407.2,1.06288078]
[1673576763020,10.03042519,1407.3,1407.2,1.06288078]
[1673576764107,7.20486,1407.3,1407.2,1.06288078]
[1673576764438,10.03042308,1407.3,1407.2,1.06288078]
[1673576764754,7.20486,1407.3,1407.2,1.06288078]
[1673576765808,10.0304417,1407.3,1407.1,2.72320195]
[1673576766017,8.26756861,1407.3,1407.2,1.06288078]
[1673576766172,7.20486,1407.3,1407.2,1.06288078]
[1673576766850,10.03042569,1407.3,1407.2,1.06288078]
[1673576767374,8.26756861,1407.3,1407.2,1.06288078]
[1673576767696,7.20486,1407.3,1407.2,1.06288078]
[1673576774374,8.26756861,1407.3,1407.2,1.06288078]
[1673576774619,7.20486,1407.3,1407.2,1.06288078]
[1673576775610,8.26756861,1407.3,1407.2,1.06288078]
[1673576776098,7.20486,1407.3,1407.2,1.06288078]
[1673576776305,8.26756861,1407.3,1407.2,1.06288078]
[1673576776488,17.1362915,1407.3,1407.2,1.06288078]
[1673576776679,17.1362915,1407.3,1407.1,2.65720195]
[1673576776889,15.37342861,1407.3,1407.1,2.65720195]
[1673576778409,15.37342861,1407.3,1407.2,1.06288078]
[1673576779221,15.37342861,1407.3,1407.1,1.59432117]
[1673576779222,15.37342861,1407.3,1407.1,2.65720195]
[1673576779433,14.31072,1407.3,1407.2,1.06288078]
[1673576788880,14.54472,1407.3,1407.2,1.06288078]
[1673576800682,21.65058,1407.3,1407.2,1.06288078]
[1673576802482,29.59849658,1407.3,1407.1,2.72320195]
[1673576802690,30.47996659,1407.3,1407.1,2.65720195]
[1673576803424,30.47998417,1407.3,1407.1,1.06288078]
[1673576804263,2.5,1407.2,1407.1,1.04495615]
[1673576804483,23.81893,1407.2,1407.1,1.04495615]
[1673576804651,23.91793,1407.2,1407.1,1.04495615]
[1673576805609,27.52426272,1407.2,1407.1,1.04495615]
[1673576807727,25.02426272,1407.2,1407.1,1.04495615]
[1673576808130,25.02426272,1407.2,1407.1,1.59432117]
[1673576808993,25.02126272,1407.2,1407.1,1.59432117]
[1673576809204,25.02426272,1407.2,1407.1,1.59432117]
[1673576809816,25.02426272,1407.2,1407.1,3.72008273]
[1673576810061,25.02426272,1407.2,1407.1,1.59432117]
[1673576810232,25.02426272,1407.2,1407.1,3.72008273]
[1673576810647,25.02426272,1407.2,1407.1,1.59432117]
[1673576810996,27.75426272,1407.2,1407.1,1.59432117]
[1673576811212,25.25426272,1407.2,1407.1,1.59432117]
[1673576811388,25.25426272,1407.2,1407.0,3.79900757]
[1673576811597,6.10633272,1407.1,1407.0,2.1986864]
[1673576811838,25.02576272,1407.1,1407.0,2.1986864]
[1673576813172,25.02576272,1407.1,1407.0,3.79397031]
[1673576816906,25.02576272,1407.1,1407.0,2.1986864]
[1673576820368,25.25576272,1407.1,1407.0,2.1986864]
[1673576821632,25.25576272,1407.1,1407.0,3.79369651]
[1673576822379,25.25576272,1407.1,1407.0,2.1986864]
[1673576824797,25.25576272,1407.1,1407.0,3.79363515]
[1673576826631,25.25576272,1407.1,1407.0,1.66787359]
[1673576826839,25.25576272,1407.1,1407.0,3.79363515]
[1673576827272,25.25576272,1407.1,1407.0,1.66787359]
[1673576827837,25.25576272,1407.1,1407.0,2.73130125]
[1673576828925,25.25295229,1407.1,1407.0,2.73130125]
[1673576830582,25.25295229,1407.1,1407.0,1.1363525]
[1673576831012,25.25295229,1407.1,1407.0,2.73130125]
[1673576831219,25.25295229,1407.1,1407.0,1.1363525]
[1673576835919,25.25295229,1407.1,1407.0,2.73130125]
[1673576836502,25.25295229,1407.1,1407.0,1.1363525]
[1673576838035,25.25295229,1407.1,1407.0,1.87586672]
[1673576841274,25.25295229,1407.1,1407.0,3.47081547]
[1673576842173,21.64943,1407.1,1407.0,3.47081547]
[1673576842492,0.099,1407.1,1407.0,5.10784295]
[1673576842696,14.3119,1407.2,1407.0,5.10666654]
[1673576842853,17.91823272,1407.2,1407.1,1.06250858]
[1673576843620,7.20531,1407.2,1407.1,2.65618941]
[1673576843790,7.20531,1407.2,1407.1,2.2172807]
[1673576843791,0.099,1407.2,1407.1,2.2172807]
[1673576844004,33.79815,1407.3,1407.1,2.2172807]
[1673576844213,37.40448272,1407.3,1407.2,1.06236821]
[1673576844478,25.25788272,1407.3,1407.2,1.06236821]
[1673576845934,25.25788272,1407.3,1407.2,1.05976312]
[1673576848316,25.25788272,1407.3,1407.1,1.59377234]
[1673576848527,25.25788272,1407.3,1407.1,2.37430063]
[1673576848977,0.333,1407.3,1407.1,4.50006219]
[1673576849174,0.234,1407.3,1407.2,4.09377234]
[1673576849386,0.234,1407.3,1407.2,3.00445356]
[1673576849791,0.234,1407.3,1407.2,1.41068122]
[1673576855859,0.234,1407.3,1407.2,2.47187419]
[1673576857491,0.234,1407.3,1407.2,1.06119297]
[1673576857746,7.3398,1407.3,1407.1,2.65496531]
[1673576857967,7.4388,1407.3,1407.1,2.65496531]
[1673576858911,0.333,1407.3,1407.2,1.06119297]
[1673576859130,0.234,1407.3,1407.2,1.06119297]
[1673576862424,7.3398,1407.3,1407.1,2.72096531]
[1673576862576,4.78753152,1407.4,1407.1,1.06119297]
[1673576862787,34.55641883,1407.5,1407.1,1.06119297]
[1673576862788,0.099,1407.5,1407.3,1.06050139]
[1673576863117,7.584193,1407.9,1407.4,3.71112644]
[1673576863324,3.60633272,1407.8,1407.5,1.06018222]
[1673576863518,3.60633272,1407.7,1407.4,1.12618222]
[1673576863848,6.18804133,1407.7,1407.4,4.06018222]
[1673576864199,2.5,1407.6,1407.3,3.08761312]
[1673576864425,3.60633272,1407.5,1407.3,1.43113036]
[1673576864587,3.60633272,1407.5,1407.3,0.37094814]
[1673576864588,12.23063272,1407.4,1407.3,0.37094814]
[1673576864823,5.22433272,1407.4,1407.3,0.37094814]
[1673576865147,7.72433272,1407.4,1407.3,0.37094814]
[1673576865522,14.82963272,1407.4,1407.3,0.37094814]
[1673576867263,21.93493272,1407.4,1407.3,0.37094814]
[1673576868456,19.43493272,1407.4,1407.3,0.37094814]
[1673576868900,19.43493272,1407.4,1407.1,2.65066498]
[1673576869139,17.91593272,1407.4,1407.1,2.65066498]
[1673576869312,25.02123272,1407.4,1407.1,2.65066498]
[1673576870081,0.099,1407.4,1407.2,1.06018222]
[1673576870293,11.9825,1407.5,1407.2,1.06018222]
[1673576870506,26.43427272,1407.4,1407.1,1.12618222]
[1673576870673,3.60633272,1407.3,1407.0,9.89552128]
[1673576870881,2.5,1407.2,1407.0,9.82952128]
[1673576871454,9.60648,1407.2,1407.0,9.82952128]
[1673576871608,9.70548,1407.2,1407.0,1.87262128]
[1673576872082,16.81196,1407.2,1407.0,1.87262128]
[1673576872242,16.81196,1407.2,1407.0,3.46310404]
[1673576872467,16.81196,1407.2,1407.0,1.87262128]
[1673576872994,29.03877272,1407.2,1407.0,1.87262128]
[1673576873182,29.03877272,1407.2,1407.0,0.81243906]
[1673576873397,29.03677272,1407.2,1407.0,0.81243906]
[1673576874180,29.03677272,1407.2,1407.0,1.87262128]
[1673576874787,29.03677272,1407.2,1407.0,0.81243906]
[1673576875180,29.03677272,1407.2,1407.0,1.87262128]
[1673576875430,29.03677272,1407.2,1407.0,0.81243906]
[1673576875656,29.03677272,1407.2,1407.0,1.87262128]
[1673576876386,29.03677272,1407.2,1407.0,0.81243906]
[1673576877098,29.03677272,1407.2,1407.0,1.87262128]
[1673576878902,19.81995272,1407.1,1407.0,1.87262128]
[1673576879082,19.91895272,1407.1,1407.0,1.87262128]
[1673576879286,17.91895272,1407.1,1407.0,0.81243906]
[1673576879754,17.91895272,1407.1,1407.0,1.87262128]
[1673576880793,17.91895272,1407.1,1407.0,0.81243906]
[1673576881009,17.91895272,1407.1,1407.0,1.87262128]
[1673576881822,17.91895272,1407.1,1407.0,0.81243906]
[1673576882046,17.91895272,1407.1,1407.0,1.87262128]
[1673576882471,25.02576272,1407.1,1407.0,1.87262128]
[1673576883955,25.02576272,1407.1,1407.0,0.81243906]
[1673576885455,2.5,1407.0,1406.8,11.00342677]
[1673576885595,2.5,1407.0,1406.7,2.25689504]
[1673576885596,14.72665272,1407.0,1406.7,2.25689504]
[1673576885796,2.5,1406.8,1406.7,2.19089504]
[1673576886008,2.5,1406.8,1406.7,0.07025136]
[1673576886009,7.62033272,1406.8,1406.7,0.07025136]
[1673576886371,29.75510957,1406.8,1406.7,0.07025136]
[1673576887386,29.98510957,1406.8,1406.7,0.07025136]
[1673576887594,31.49010957,1406.8,1406.7,0.07025136]
[1673576888028,33.18127866,1406.8,1406.7,0.07025136]
[1673576888875,44.68197866,1406.8,1406.7,0.07025136]
[1673576889679,48.50328692,1406.8,1406.7,0.07025136]
[1673576889900,53.01728692,1406.8,1406.7,0.07025136]
[1673576890149,61.51968692,1406.8,1406.7,0.07025136]
[1673576892250,57.69837866,1406.8,1406.7,0.07025136]
[1673576893631,61.51968692,1406.8,1406.7,0.07025136]
[1673576895671,59.82851783,1406.8,1406.7,0.07025136]
[1673576896418,1.15025135,1406.6,1406.5,0.09143389]
[1673576896588,41.79225233,1406.6,1406.5,0.09143389]
[1673576896900,41.79225233,1406.6,1406.4,0.09110811]
[1673576896901,2.5,1406.5,1406.4,0.09110811]
[1673576897063,48.02772098,1406.5,1406.4,0.09110811]
[1673576897273,51.87458008,1406.5,1406.4,0.09110811]
[1673576898258,45.95566142,1406.5,1406.4,0.09110811]
[1673576898642,48.97666142,1406.5,1406.4,0.09110811]
[1673576899085,56.08650142,1406.5,1406.4,0.09110811]
[1673576901373,59.90780968,1406.5,1406.4,0.09110811]
[1673576904440,71.65280968,1406.5,1406.3,0.07025136]
[1673576904665,30.70338272,1406.4,1406.3,0.07025136]
[1673576904914,38.33447783,1406.4,1406.3,0.07025136]
[1673576905137,2.5,1406.3,1406.2,0.08191454]
[1673576905283,2.5,1406.2,1406.1,0.10202186]
[1673576905673,56.21749957,1406.2,1406.1,0.10202186]
[1673576905828,60.36780783,1406.2,1406.1,0.10202186]
[1673576906381,58.86080783,1406.2,1406.1,0.10202186]
[1673576906718,58.86080783,1406.2,1405.9,0.08731391]
[1673576906719,73.79938635,1406.2,1405.9,0.08731391]
[1673576907015,5.12233272,1406.0,1405.9,0.08731391]
[1673576907256,36.90081272,1406.0,1405.9,0.08731391]
[1673576907437,39.13159957,1406.0,1405.9,0.08731391]
[1673576908961,37.61559957,1406.0,1405.9,0.08731391]
[1673576909171,36.09559957,1406.0,1405.9,0.08731391]
[1673576910233,45.03069957,1406.0,1405.9,0.08731391]
[1673576911801,34.91832957,1406.0,1405.9,0.08731391]
[1673576912010,34.20754272,1406.0,1405.9,0.08731391]
[1673576913731,36.11932957,1406.0,1405.9,0.08731391]
[1673576914130,39.94063783,1406.0,1405.9,0.08731391]
[1673576914347,36.11932957,1406.0,1405.9,0.08731391]
[1673576918950,35.17854272,1406.0,1405.9,0.08731391]
[1673576920529,35.88932957,1406.0,1405.9,0.08731391]
[1673576920974,36.11932957,1406.0,1405.9,0.08731391]
[1673576921403,34.91832957,1406.0,1405.9,0.08731391]
[1673576922696,34.20754272,1406.0,1405.9,0.08731391]
[1673576923644,25.04244272,1406.0,1405.9,1.17931391]
[1673576923791,3.70533272,1406.0,1405.9,1.17931391]
[1673576923996,10.71870272,1406.0,1405.9,1.4184453]
[1673576924265,25.04244272,1406.0,1405.9,0.08731391]
[1673576924579,27.54244272,1406.0,1405.9,0.08731391]
[1673576925153,27.77244272,1406.0,1405.9,0.08731391]
[1673576925605,28.48322957,1406.0,1405.9,0.08731391]
[1673576928977,37.72453783,1406.0,1405.9,1e-08]
[1673576929163,33.90322957,1406.0,1405.9,1e-08]
[1673576935264,45.75662957,1406.0,1405.9,1e-08]
[1673576936564,44.54862957,1406.0,1405.9,1e-08]
[1673576937704,60.11493783,1406.0,1405.9,1e-08]
[1673576939293,56.29362957,1406.0,1405.9,1e-08]
[1673576939439,60.11493783,1406.0,1405.9,1e-08]
[1673576939655,68.39624281,1406.0,1405.9,1e-08]
[1673576939907,66.80153259,1406.0,1405.9,1e-08]
[1673576940117,70.3238296,1406.0,1405.9,1e-08]
[1673576940753,68.19377469,1406.0,1405.9,1e-08]
[1673576940922,82.19377469,1406.0,1405.9,1e-08]
[1673576941135,84.3238296,1406.0,1405.9,1e-08]
[1673576942080,84.32537555,1406.0,1405.9,1e-08]
[1673576942435,82.72911938,1406.0,1405.9,1e-08]
[1673576942646,83.87864437,1406.0,1405.9,1e-08]
[1673576943648,80.05733611,1406.0,1405.9,1e-08]
[1673576943860,80.50353236,1406.0,1405.9,1e-08]
[1673576944191,51.31774551,1406.0,1405.9,1e-08]
[1673576944408,45.90424556,1406.0,1405.9,1e-08]
[1673576944604,46.96853624,1406.0,1405.9,1e-08]
[1673576945023,42.37164548,1406.0,1405.9,1e-08]
[1673576945357,36.89584272,1406.0,1405.9,1e-08]
[1673576946412,25.04244272,1406.0,1405.9,1e-08]
[1673576947451,25.27244272,1406.0,1405.9,1e-08]
[1673576951610,18.16007272,1406.0,1405.9,1e-08]
[1673576952227,18.15659169,1406.0,1405.9,1e-08]
[1673576952433,25.26896169,1406.0,1405.9,0.10590153]
[1673576955238,18.15659169,1406.0,1405.9,0.10590153]
[1673576956486,11.04422169,1406.0,1405.9,0.10590153]
[1673576957027,18.15659169,1406.0,1405.9,0.10590153]
[1673576958324,11.04422169,1406.0,1405.9,0.10590153]
[1673576958948,7.21137,1406.0,1405.9,0.10590153]
[1673576970561,7.21137,1406.0,1405.9,1.16491673]
[1673576970811,7.21137,1406.0,1405.9,0.10590153]
[1673576971138,0.099,1406.0,1405.9,1.16491673]
[1673576971344,21.43579,1406.1,1405.9,0.10590153]
[1673576971525,25.04212272,1406.1,1405.9,1.05901521]